[Event "Titled Tuesday Blitz July 20 2021"]
[White "Vasli, Aref"]
[Black "Dolzhykova, Kateryna"]
[WhiteFideId "417521"]
[BlackFideId "14113414"]
[WhiteElo "2257"]
[BlackElo "2151"]
[Result "0-1"]
[Round "07"]
[TimeControl "180+1"]
[Date "2021.07.21"]
[WhiteClock "0:00:03"]
[BlackClock "0:00:22"]

1. Nf3 {[%clk 0:03:00]}  Nf6 {[%clk 0:02:59]} 2. b3 {[%clk 0:03:01]}  g6 {[%clk 0:02:58]} 3. Bb2 {[%clk 0:03:01]}  Bg7 {[%clk 0:02:58]} 4. e3 {[%clk 0:03:01]}  O-O {[%clk 0:02:57]} 5. Be2 {[%clk 0:03:00]}  c5 {[%clk 0:02:57]} 6. O-O {[%clk 0:03:00]}  b6 {[%clk 0:02:55]} 7. d4 {[%clk 0:03:00]}  d6 {[%clk 0:02:54]} 8. Nbd2 {[%clk 0:02:57]}  Bb7 {[%clk 0:02:54]} 9. c4 {[%clk 0:02:56]}  e6 {[%clk 0:02:53]} 10. Qc2 {[%clk 0:02:54]}  Nbd7 {[%clk 0:02:48]} 11. Rad1 {[%clk 0:02:52]}  Qe7 {[%clk 0:02:45]} 12. Rfe1 {[%clk 0:02:46]}  Rfd8 {[%clk 0:02:43]} 13. Bd3 {[%clk 0:02:32]}  Rac8 {[%clk 0:02:41]} 14. Ne4 {[%clk 0:02:32]}  Nxe4 {[%clk 0:02:38]} 15. Bxe4 {[%clk 0:02:33]}  d5 {[%clk 0:02:39]} 16. Bd3 {[%clk 0:02:26]}  cxd4 {[%clk 0:02:36]} 17. exd4 {[%clk 0:02:16]}  dxc4 {[%clk 0:02:35]} 18. bxc4 {[%clk 0:02:15]}  Bxf3 {[%clk 0:02:35]} 19. gxf3 {[%clk 0:02:15]}  Nb8 {[%clk 0:02:31]} 20. Kh1 {[%clk 0:01:57]}  Nc6 {[%clk 0:02:25]} 21. d5 {[%clk 0:01:54]}  Nb4 {[%clk 0:02:24]} 22. Ba3 {[%clk 0:01:21]}  Nxc2 {[%clk 0:02:22]} 23. Bxe7 {[%clk 0:01:21]}  Nxe1 {[%clk 0:02:23]} 24. Rxe1 {[%clk 0:01:13]}  Rd7 {[%clk 0:02:14]} 25. Bb4 {[%clk 0:01:05]}  exd5 {[%clk 0:02:13]} 26. cxd5 {[%clk 0:01:05]}  Rxd5 {[%clk 0:02:13]} 27. Ba6 {[%clk 0:01:05]}  Rcd8 {[%clk 0:02:11]} 28. Kg2 {[%clk 0:01:04]}  Bf8 {[%clk 0:02:09]} 29. Bc3 {[%clk 0:00:58]}  Bc5 {[%clk 0:02:04]} 30. a4 {[%clk 0:00:55]}  Rg5+ {[%clk 0:02:03]} 31. Kf1 {[%clk 0:00:54]}  Rf5 {[%clk 0:02:02]} 32. Kg2 {[%clk 0:00:52]}  Rf4 {[%clk 0:01:55]} 33. Bb5 {[%clk 0:00:48]}  Bb4 {[%clk 0:01:51]} 34. Bxb4 {[%clk 0:00:46]}  Rxb4 {[%clk 0:01:52]} 35. Re7 {[%clk 0:00:46]}  a6 {[%clk 0:01:50]} 36. Bxa6 {[%clk 0:00:46]}  Rxa4 {[%clk 0:01:50]} 37. Bf1 {[%clk 0:00:43]}  Rad4 {[%clk 0:01:50]} 38. Kg3 {[%clk 0:00:42]}  R8d7 {[%clk 0:01:50]} 39. Re8+ {[%clk 0:00:42]}  Kg7 {[%clk 0:01:50]} 40. h4 {[%clk 0:00:42]}  h5 {[%clk 0:01:50]} 41. f4 {[%clk 0:00:42]}  b5 {[%clk 0:01:49]} 42. Bxb5 {[%clk 0:00:42]}  Rd8 {[%clk 0:01:49]} 43. Re7 {[%clk 0:00:41]}  Kf8 {[%clk 0:01:48]} 44. Rb7 {[%clk 0:00:40]}  Rb4 {[%clk 0:01:47]} 45. Bc6 {[%clk 0:00:38]}  Rxb7 {[%clk 0:01:47]} 46. Bxb7 {[%clk 0:00:38]}  Ke7 {[%clk 0:01:47]} 47. f5 {[%clk 0:00:36]}  Kf6 {[%clk 0:01:48]} 48. fxg6 {[%clk 0:00:37]}  fxg6 {[%clk 0:01:49]} 49. Be4 {[%clk 0:00:34]}  Rd4 {[%clk 0:01:40]} 50. Kf4 {[%clk 0:00:34]}  Rb4 {[%clk 0:01:38]} 51. f3 {[%clk 0:00:34]}  Rb2 {[%clk 0:01:37]} 52. Kg3 {[%clk 0:00:33]}  g5 {[%clk 0:01:30]} 53. hxg5+ {[%clk 0:00:34]}  Kxg5 {[%clk 0:01:31]} 54. Bd5 {[%clk 0:00:33]}  h4+ {[%clk 0:01:29]} 55. Kh3 {[%clk 0:00:33]}  Rf2 {[%clk 0:01:26]} 56. Bc6 {[%clk 0:00:33]}  Kf4 {[%clk 0:01:16]} 57. Bd7 {[%clk 0:00:33]}  Rd2 {[%clk 0:01:15]} 58. Bg4 {[%clk 0:00:31]}  Kg5 {[%clk 0:01:13]} 59. Bc8 {[%clk 0:00:28]}  Rd8 {[%clk 0:01:12]} 60. Bg4 {[%clk 0:00:28]}  Ra8 {[%clk 0:01:06]} 61. Bd7 {[%clk 0:00:28]}  Ra3 {[%clk 0:01:02]} 62. Bg4 {[%clk 0:00:18]}  Kf4 {[%clk 0:01:01]} 63. Kxh4 {[%clk 0:00:18]}  Ra1 {[%clk 0:00:58]} 64. Kh3 {[%clk 0:00:17]}  Ra2 {[%clk 0:00:57]} 65. Bh5 {[%clk 0:00:15]}  Rb2 {[%clk 0:00:55]} 66. Bg4 {[%clk 0:00:15]}  Rf2 {[%clk 0:00:53]} 67. Bh5 {[%clk 0:00:15]}  Rf1 {[%clk 0:00:43]} 68. Kg2 {[%clk 0:00:14]}  Ra1 {[%clk 0:00:43]} 69. Bg4 {[%clk 0:00:14]}  Ra2+ {[%clk 0:00:43]} 70. Kh3 {[%clk 0:00:15]}  Ra8 {[%clk 0:00:39]} 71. Kg2 {[%clk 0:00:13]}  Rh8 {[%clk 0:00:37]} 72. Bh3 {[%clk 0:00:11]}  Kg5 {[%clk 0:00:33]} 73. Kg3 {[%clk 0:00:11]}  Ra8 {[%clk 0:00:30]} 74. f4+ {[%clk 0:00:09]}  Kf6 {[%clk 0:00:30]} 75. Bg2 {[%clk 0:00:09]}  Ra3+ {[%clk 0:00:30]} 76. Kg4 {[%clk 0:00:09]}  Ra4 {[%clk 0:00:29]} 77. Bf3 {[%clk 0:00:09]}  Rb4 {[%clk 0:00:29]} 78. Bd5 {[%clk 0:00:09]}  Ke7 {[%clk 0:00:29]} 79. Kf5 {[%clk 0:00:09]}  Rb5 {[%clk 0:00:27]} 80. Ke5 {[%clk 0:00:08]}  Rb1 {[%clk 0:00:25]} 81. f5 {[%clk 0:00:07]}  Re1+ {[%clk 0:00:25]} 82. Be4 {[%clk 0:00:04]}  Re2 {[%clk 0:00:23]} 83. f6+ {[%clk 0:00:03]}  Kf7 {[%clk 0:00:22]} 0-1


[Site "https://www.chess.com"]

[Event "Titled Tuesday Blitz July 20 2021"]
[White "Vusatiuk, Vladimir"]
[Black "Ezat, Mohamed"]
[WhiteFideId "14118610"]
[BlackFideId "10600906"]
[WhiteElo "2167"]
[BlackElo "2414"]
[Result "0-1"]
[Round "07"]
[TimeControl "180+1"]
[Date "2021.07.21"]
[WhiteClock "0:01:01"]
[BlackClock "0:01:47"]

1. d4 {[%clk 0:03:00]}  d6 {[%clk 0:02:56]} 2. Nf3 {[%clk 0:02:59]}  Nf6 {[%clk 0:02:56]} 3. g3 {[%clk 0:02:57]}  g6 {[%clk 0:02:56]} 4. Bg2 {[%clk 0:02:57]}  Bg7 {[%clk 0:02:56]} 5. O-O {[%clk 0:02:58]}  O-O {[%clk 0:02:56]} 6. c4 {[%clk 0:02:59]}  Nc6 {[%clk 0:02:57]} 7. Nc3 {[%clk 0:02:59]}  Bg4 {[%clk 0:02:57]} 8. h3 {[%clk 0:02:56]}  Bxf3 {[%clk 0:02:58]} 9. Bxf3 {[%clk 0:02:57]}  Nd7 {[%clk 0:02:58]} 10. d5 {[%clk 0:02:55]}  Nce5 {[%clk 0:02:57]} 11. Bg2 {[%clk 0:02:55]}  Nxc4 {[%clk 0:02:56]} 12. a4 {[%clk 0:02:43]}  a5 {[%clk 0:02:49]} 13. e4 {[%clk 0:02:36]}  c5 {[%clk 0:02:46]} 14. Qb3 {[%clk 0:02:30]}  Ncb6 {[%clk 0:02:41]} 15. Nb5 {[%clk 0:02:30]}  c4 {[%clk 0:02:36]} 16. Qc2 {[%clk 0:02:21]}  Nc5 {[%clk 0:02:37]} 17. Be3 {[%clk 0:02:20]}  Rc8 {[%clk 0:02:33]} 18. Rfd1 {[%clk 0:02:10]}  Qd7 {[%clk 0:02:31]} 19. Kh2 {[%clk 0:02:08]}  Nbxa4 {[%clk 0:02:26]} 20. Rxa4 {[%clk 0:02:05]}  Qxb5 {[%clk 0:02:22]} 21. Rxc4 {[%clk 0:01:47]}  Qxb2 {[%clk 0:02:07]} 22. Qxb2 {[%clk 0:01:46]}  Bxb2 {[%clk 0:02:06]} 23. Rb1 {[%clk 0:01:47]}  Ba3 {[%clk 0:02:06]} 24. Bxc5 {[%clk 0:01:46]}  Bxc5 {[%clk 0:02:06]} 25. Rxb7 {[%clk 0:01:46]}  Bxf2 {[%clk 0:02:02]} 26. Ra4 {[%clk 0:01:27]}  Rc3 {[%clk 0:02:00]} 27. g4 {[%clk 0:01:25]}  Bg3+ {[%clk 0:01:59]} 28. Kg1 {[%clk 0:01:26]}  Rfc8 {[%clk 0:01:50]} 29. Rxa5 {[%clk 0:01:15]}  Rc1+ {[%clk 0:01:49]} 30. Bf1 {[%clk 0:01:15]}  R8c2 {[%clk 0:01:50]} 31. Ra8+ {[%clk 0:01:04]}  Kg7 {[%clk 0:01:49]} 32. Rxe7 {[%clk 0:01:01]}  Bh2+ {[%clk 0:01:49]} 33. Kh1 {[%clk 0:01:01]}  Rxf1# {[%clk 0:01:47]} 0-1


[Site "https://www.chess.com"]

[Event "Titled Tuesday Blitz July 20 2021"]
[White "Wieczorek, Zbigniew"]
[Black "Odinaev, Timur"]
[WhiteFideId "1102001"]
[BlackFideId "4163770"]
[WhiteElo "2289"]
[BlackElo "2306"]
[Result "1-0"]
[Round "07"]
[TimeControl "180+1"]
[Date "2021.07.21"]
[WhiteClock "0:00:18"]
[BlackClock "0:00:07"]

1. d4 {[%clk 0:03:00]}  Nf6 {[%clk 0:02:59]} 2. c4 {[%clk 0:02:58]}  c5 {[%clk 0:02:59]} 3. d5 {[%clk 0:02:58]}  e6 {[%clk 0:03:00]} 4. Nc3 {[%clk 0:02:58]}  exd5 {[%clk 0:03:01]} 5. cxd5 {[%clk 0:02:59]}  d6 {[%clk 0:03:01]} 6. e4 {[%clk 0:02:59]}  g6 {[%clk 0:03:02]} 7. f3 {[%clk 0:03:00]}  Bg7 {[%clk 0:03:03]} 8. Bg5 {[%clk 0:03:00]}  O-O {[%clk 0:03:02]} 9. Qd2 {[%clk 0:03:01]}  h6 {[%clk 0:03:02]} 10. Be3 {[%clk 0:03:00]}  h5 {[%clk 0:03:03]} 11. Nge2 {[%clk 0:02:58]}  a6 {[%clk 0:03:03]} 12. a4 {[%clk 0:02:58]}  Nbd7 {[%clk 0:03:01]} 13. Nd1 {[%clk 0:02:58]}  Ne5 {[%clk 0:03:01]} 14. Nec3 {[%clk 0:02:58]}  Re8 {[%clk 0:03:00]} 15. Be2 {[%clk 0:02:58]}  h4 {[%clk 0:03:00]} 16. O-O {[%clk 0:02:58]}  h3 {[%clk 0:03:01]} 17. g3 {[%clk 0:02:58]}  Bd7 {[%clk 0:03:01]} 18. a5 {[%clk 0:02:57]}  Rb8 {[%clk 0:03:01]} 19. Nf2 {[%clk 0:02:53]}  b5 {[%clk 0:02:56]} 20. axb6 {[%clk 0:02:52]}  Rxb6 {[%clk 0:02:57]} 21. Rfb1 {[%clk 0:02:51]}  Qe7 {[%clk 0:02:47]} 22. Bg5 {[%clk 0:02:35]}  Bb5 {[%clk 0:02:36]} 23. Nxb5 {[%clk 0:02:30]}  axb5 {[%clk 0:02:36]} 24. b4 {[%clk 0:02:26]}  c4 {[%clk 0:02:19]} 25. Ra5 {[%clk 0:02:11]}  Qd7 {[%clk 0:02:04]} 26. Be3 {[%clk 0:01:56]}  Rb7 {[%clk 0:02:02]} 27. Bd4 {[%clk 0:01:51]}  Kh7 {[%clk 0:01:40]} 28. Rba1 {[%clk 0:01:49]}  Nh5 {[%clk 0:01:12]} 29. Qc3 {[%clk 0:01:44]}  f6 {[%clk 0:00:59]} 30. f4 {[%clk 0:01:32]}  Nf7 {[%clk 0:00:59]} 31. Bg4 {[%clk 0:01:29]}  Qe7 {[%clk 0:00:38]} 32. Be6 {[%clk 0:01:07]}  Nd8 {[%clk 0:00:36]} 33. f5 {[%clk 0:01:06]}  Nxe6 {[%clk 0:00:35]} 34. dxe6 {[%clk 0:01:05]}  Bh6 {[%clk 0:00:29]} 35. Ng4 {[%clk 0:01:03]}  Bg5 {[%clk 0:00:27]} 36. Ra7 {[%clk 0:01:00]}  Reb8 {[%clk 0:00:23]} 37. Rxb7 {[%clk 0:00:58]}  Rxb7 {[%clk 0:00:24]} 38. Qf3 {[%clk 0:00:50]}  Ng7 {[%clk 0:00:20]} 39. Ne3 {[%clk 0:00:29]}  gxf5 {[%clk 0:00:19]} 40. exf5 {[%clk 0:00:20]}  Rc7 {[%clk 0:00:19]} 41. Nd5 {[%clk 0:00:20]}  Qe8 {[%clk 0:00:18]} 42. Bxf6 {[%clk 0:00:19]}  Rc8 {[%clk 0:00:09]} 43. Bxg5 {[%clk 0:00:19]}  Qh5 {[%clk 0:00:07]} 44. Nf6+ {[%clk 0:00:18]} 1-0


[Site "https://www.chess.com"]

[Event "Titled Tuesday Blitz July 20 2021"]
[White "Zierk, Steven"]
[Black "Rodriguez Hernandez, Luis Daniel"]
[WhiteFideId "2034255"]
[BlackFideId "3506770"]
[WhiteElo "2494"]
[BlackElo "2133"]
[Result "0-1"]
[Round "07"]
[TimeControl "180+1"]
[Date "2021.07.20"]
[WhiteClock "0:01:20"]
[BlackClock "0:00:39"]

1. e4 {[%clk 0:02:54]}  e5 {[%clk 0:02:59]} 2. Nf3 {[%clk 0:02:53]}  Nc6 {[%clk 0:02:59]} 3. Bc4 {[%clk 0:02:52]}  Nf6 {[%clk 0:03:00]} 4. d3 {[%clk 0:02:50]}  Bc5 {[%clk 0:03:00]} 5. O-O {[%clk 0:02:50]}  a6 {[%clk 0:03:00]} 6. c3 {[%clk 0:02:49]}  Ba7 {[%clk 0:03:01]} 7. a4 {[%clk 0:02:48]}  O-O {[%clk 0:03:01]} 8. h3 {[%clk 0:02:46]}  h6 {[%clk 0:03:01]} 9. Re1 {[%clk 0:02:45]}  d6 {[%clk 0:03:01]} 10. Nbd2 {[%clk 0:02:43]}  Be6 {[%clk 0:03:01]} 11. Bxe6 {[%clk 0:02:40]}  fxe6 {[%clk 0:03:02]} 12. b4 {[%clk 0:02:40]}  Nh5 {[%clk 0:03:00]} 13. Ra2 {[%clk 0:02:39]}  Nf4 {[%clk 0:03:00]} 14. Nf1 {[%clk 0:02:35]}  Qf6 {[%clk 0:02:59]} 15. Bxf4 {[%clk 0:02:31]}  Qxf4 {[%clk 0:02:58]} 16. d4 {[%clk 0:02:30]}  exd4 {[%clk 0:02:55]} 17. cxd4 {[%clk 0:02:25]}  Nxb4 {[%clk 0:02:49]} 18. Rb2 {[%clk 0:02:25]}  c5 {[%clk 0:02:41]} 19. dxc5 {[%clk 0:02:16]}  Bxc5 {[%clk 0:02:40]} 20. Ne3 {[%clk 0:02:03]}  Qxe4 {[%clk 0:01:54]} 21. Nc2 {[%clk 0:01:56]}  Qc4 {[%clk 0:01:11]} 22. Nxb4 {[%clk 0:01:36]}  Bxb4 {[%clk 0:01:12]} 23. Qe2 {[%clk 0:01:36]}  Qxe2 {[%clk 0:00:59]} 24. Rexe2 {[%clk 0:01:37]}  a5 {[%clk 0:00:59]} 25. Rxe6 {[%clk 0:01:37]}  Rae8 {[%clk 0:00:59]} 26. Rxe8 {[%clk 0:01:36]}  Rxe8 {[%clk 0:01:00]} 27. Rc2 {[%clk 0:01:36]}  Bc5 {[%clk 0:00:58]} 28. Kf1 {[%clk 0:01:34]}  Re4 {[%clk 0:00:58]} 29. Rb2 {[%clk 0:01:33]}  Rxa4 {[%clk 0:00:56]} 30. Rxb7 {[%clk 0:01:33]}  Ra2 {[%clk 0:00:56]} 31. Nh4 {[%clk 0:01:29]}  Rxf2+ {[%clk 0:00:56]} 32. Ke1 {[%clk 0:01:29]}  a4 {[%clk 0:00:43]} 33. g4 {[%clk 0:01:26]}  Rf7 {[%clk 0:00:38]} 34. Rb8+ {[%clk 0:01:24]}  Rf8 {[%clk 0:00:39]} 35. Rb7 {[%clk 0:01:20]}  Bf2+ {[%clk 0:00:38]} 36. Ke2 {[%clk 0:01:20]}  Bxh4 {[%clk 0:00:39]} 0-1


[Site "https://www.chess.com"]

[Event "Titled Tuesday Blitz July 20 2021"]
[White "Zubov, Alexander"]
[Black "Tin, Jingyao"]
[WhiteFideId "14109409"]
[BlackFideId "5804418"]
[WhiteElo "2740"]
[BlackElo "2374"]
[Result "1-0"]
[Round "07"]
[TimeControl "180+1"]
[Date "2021.07.20"]
[WhiteClock "0:00:33"]
[BlackClock "0:00:02"]

1. d4 {[%clk 0:03:00]}  Nf6 {[%clk 0:03:00]} 2. c4 {[%clk 0:03:00]}  e6 {[%clk 0:03:00]} 3. Nf3 {[%clk 0:03:00]}  d5 {[%clk 0:03:00]} 4. Nc3 {[%clk 0:03:00]}  c6 {[%clk 0:03:00]} 5. e3 {[%clk 0:03:00]}  Nbd7 {[%clk 0:02:59]} 6. Qc2 {[%clk 0:03:00]}  Bd6 {[%clk 0:03:00]} 7. b3 {[%clk 0:03:01]}  O-O {[%clk 0:02:57]} 8. Be2 {[%clk 0:03:01]}  e5 {[%clk 0:02:56]} 9. cxd5 {[%clk 0:03:00]}  cxd5 {[%clk 0:02:56]} 10. Nb5 {[%clk 0:02:58]}  Bb8 {[%clk 0:02:52]} 11. dxe5 {[%clk 0:02:51]}  Nxe5 {[%clk 0:02:51]} 12. Bb2 {[%clk 0:02:45]}  Nxf3+ {[%clk 0:02:27]} 13. gxf3 {[%clk 0:02:46]}  Bd7 {[%clk 0:02:06]} 14. Rg1 {[%clk 0:02:38]}  Re8 {[%clk 0:01:44]} 15. Rd1 {[%clk 0:01:52]}  Bxh2 {[%clk 0:01:27]} 16. Rg5 {[%clk 0:01:52]}  h6 {[%clk 0:01:19]} 17. Rg2 {[%clk 0:01:51]}  Be5 {[%clk 0:01:17]} 18. Bxe5 {[%clk 0:01:52]}  Rxe5 {[%clk 0:01:18]} 19. Qc3 {[%clk 0:01:51]}  Qe7 {[%clk 0:01:08]} 20. Nd4 {[%clk 0:01:46]}  Rc8 {[%clk 0:01:05]} 21. Qa5 {[%clk 0:01:46]}  Qc5 {[%clk 0:00:52]} 22. Qxc5 {[%clk 0:01:45]}  Rxc5 {[%clk 0:00:53]} 23. Kd2 {[%clk 0:01:45]}  Re8 {[%clk 0:00:52]} 24. Rh1 {[%clk 0:01:43]}  Kf8 {[%clk 0:00:51]} 25. b4 {[%clk 0:01:42]}  Rc7 {[%clk 0:00:50]} 26. Bd3 {[%clk 0:01:42]}  Ra8 {[%clk 0:00:41]} 27. Bc2 {[%clk 0:01:35]}  a5 {[%clk 0:00:39]} 28. bxa5 {[%clk 0:01:35]}  Rxa5 {[%clk 0:00:38]} 29. Bb3 {[%clk 0:01:31]}  Rac5 {[%clk 0:00:37]} 30. Rb1 {[%clk 0:01:29]}  Be6 {[%clk 0:00:33]} 31. Bc2 {[%clk 0:01:27]}  Bd7 {[%clk 0:00:26]} 32. Rgg1 {[%clk 0:01:21]}  g6 {[%clk 0:00:24]} 33. Rb2 {[%clk 0:01:20]}  h5 {[%clk 0:00:24]} 34. Rgb1 {[%clk 0:01:20]}  Bc8 {[%clk 0:00:25]} 35. Nb5 {[%clk 0:01:20]}  Rd7 {[%clk 0:00:23]} 36. Bd3 {[%clk 0:01:13]}  Rd8 {[%clk 0:00:22]} 37. Na7 {[%clk 0:01:11]}  Ra5 {[%clk 0:00:17]} 38. Nb5 {[%clk 0:01:11]}  h4 {[%clk 0:00:15]} 39. Nd4 {[%clk 0:01:11]}  h3 {[%clk 0:00:15]} 40. Rh1 {[%clk 0:01:10]}  Rd6 {[%clk 0:00:15]} 41. Bf1 {[%clk 0:01:10]}  Ra7 {[%clk 0:00:09]} 42. Rc2 {[%clk 0:01:03]}  Bd7 {[%clk 0:00:08]} 43. Bxh3 {[%clk 0:01:02]}  Rda6 {[%clk 0:00:06]} 44. Bxd7 {[%clk 0:00:59]}  Nxd7 {[%clk 0:00:07]} 45. Ra1 {[%clk 0:00:57]}  Ra5 {[%clk 0:00:05]} 46. Nb3 {[%clk 0:00:48]}  Ra3 {[%clk 0:00:05]} 47. Nd4 {[%clk 0:00:49]}  R7a5 {[%clk 0:00:05]} 48. Rb2 {[%clk 0:00:49]}  Ne5 {[%clk 0:00:05]} 49. Ke2 {[%clk 0:00:48]}  Nc4 {[%clk 0:00:06]} 50. Rc2 {[%clk 0:00:47]}  Ke7 {[%clk 0:00:04]} 51. f4 {[%clk 0:00:47]}  Kd6 {[%clk 0:00:04]} 52. Kf3 {[%clk 0:00:47]}  b6 {[%clk 0:00:05]} 53. Kg4 {[%clk 0:00:45]}  Ke7 {[%clk 0:00:04]} 54. Kg5 {[%clk 0:00:45]}  R3a4 {[%clk 0:00:04]} 55. Nc6+ {[%clk 0:00:44]}  Kd6 {[%clk 0:00:03]} 56. Nxa5 {[%clk 0:00:45]}  Rxa5 {[%clk 0:00:04]} 57. Rd1 {[%clk 0:00:43]}  Kc5 {[%clk 0:00:04]} 58. Kf6 {[%clk 0:00:42]}  Ra7 {[%clk 0:00:04]} 59. Rh1 {[%clk 0:00:36]}  b5 {[%clk 0:00:04]} 60. Rh8 {[%clk 0:00:37]}  Kb4 {[%clk 0:00:03]} 61. Rd8 {[%clk 0:00:35]}  Ra6+ {[%clk 0:00:02]} 62. Kxf7 {[%clk 0:00:35]}  Nd6+ {[%clk 0:00:03]} 63. Kf8 {[%clk 0:00:34]}  Ne4 {[%clk 0:00:01]} 64. Rxd5 {[%clk 0:00:33]}  Nf6 {[%clk 0:00:01]} 65. Rd4+ {[%clk 0:00:33]}  Ka3 {[%clk 0:00:01]} 66. Kf7 {[%clk 0:00:33]}  b4 {[%clk 0:00:02]} 67. Rd3+ {[%clk 0:00:32]}  Ka4 {[%clk 0:00:02]} 68. Rb2 {[%clk 0:00:33]}  Ne4 {[%clk 0:00:02]} 69. Rd4 {[%clk 0:00:33]}  Rb6 {[%clk 0:00:02]} 70. Rxe4 {[%clk 0:00:33]} 1-0


[Site "https://www.chess.com"]

[Event "Titled Tuesday Blitz July 20 2021"]
[White "volunteers1998"]
[Black "Bartel, Michal"]
[BlackFideId "1119257"]
[WhiteElo "2222"]
[BlackElo "2271"]
[Result "0-1"]
[Round "07"]
[TimeControl "180+1"]
[Date "2021.07.21"]
[WhiteClock "0:00:01"]
[BlackClock "0:00:26"]

1. e4 {[%clk 0:03:00]}  e5 {[%clk 0:02:57]} 2. Nf3 {[%clk 0:03:00]}  Nc6 {[%clk 0:02:57]} 3. Bc4 {[%clk 0:02:58]}  Nf6 {[%clk 0:02:55]} 4. Ng5 {[%clk 0:02:57]}  d5 {[%clk 0:02:55]} 5. exd5 {[%clk 0:02:55]}  Na5 {[%clk 0:02:56]} 6. Bb5+ {[%clk 0:02:53]}  c6 {[%clk 0:02:55]} 7. dxc6 {[%clk 0:02:51]}  bxc6 {[%clk 0:02:56]} 8. Bd3 {[%clk 0:02:48]}  h6 {[%clk 0:02:56]} 9. Ne4 {[%clk 0:02:46]}  Nd5 {[%clk 0:02:56]} 10. O-O {[%clk 0:02:43]}  g6 {[%clk 0:02:53]} 11. Nbc3 {[%clk 0:02:36]}  Bg7 {[%clk 0:02:51]} 12. Be2 {[%clk 0:02:27]}  f5 {[%clk 0:02:43]} 13. Nc5 {[%clk 0:02:25]}  Qd6 {[%clk 0:02:39]} 14. Nb3 {[%clk 0:02:22]}  Nb7 {[%clk 0:02:37]} 15. d3 {[%clk 0:02:19]}  O-O {[%clk 0:02:37]} 16. Bd2 {[%clk 0:02:16]}  Bd7 {[%clk 0:02:29]} 17. Re1 {[%clk 0:02:13]}  Rae8 {[%clk 0:02:29]} 18. Bf3 {[%clk 0:02:01]}  Kh7 {[%clk 0:02:25]} 19. Qe2 {[%clk 0:01:53]}  a5 {[%clk 0:02:12]} 20. a4 {[%clk 0:01:47]}  Nb4 {[%clk 0:02:03]} 21. Rac1 {[%clk 0:01:39]}  Be6 {[%clk 0:02:00]} 22. Be3 {[%clk 0:01:29]}  Bxb3 {[%clk 0:01:50]} 23. cxb3 {[%clk 0:01:30]}  Nxd3 {[%clk 0:01:50]} 24. Red1 {[%clk 0:01:17]}  Nxc1 {[%clk 0:01:48]} 25. Bxc1 {[%clk 0:01:08]}  Qc7 {[%clk 0:01:44]} 26. Qc4 {[%clk 0:01:04]}  e4 {[%clk 0:01:43]} 27. Be2 {[%clk 0:01:02]}  Rd8 {[%clk 0:01:43]} 28. g3 {[%clk 0:00:58]}  Rxd1+ {[%clk 0:01:38]} 29. Bxd1 {[%clk 0:00:59]}  Rd8 {[%clk 0:01:34]} 30. Bf4 {[%clk 0:00:54]}  Qd7 {[%clk 0:01:28]} 31. Be2 {[%clk 0:00:50]}  g5 {[%clk 0:01:28]} 32. Be3 {[%clk 0:00:48]}  Be5 {[%clk 0:01:17]} 33. Bb6 {[%clk 0:00:43]}  Ra8 {[%clk 0:01:05]} 34. Bf1 {[%clk 0:00:26]}  Bc7 {[%clk 0:00:50]} 35. Bxc7 {[%clk 0:00:20]}  Qxc7 {[%clk 0:00:50]} 36. Nd5 {[%clk 0:00:18]}  Qf7 {[%clk 0:00:48]} 37. Qxc6 {[%clk 0:00:15]}  Rf8 {[%clk 0:00:41]} 38. Bc4 {[%clk 0:00:14]}  Nd8 {[%clk 0:00:40]} 39. Qc5 {[%clk 0:00:11]}  Qg7 {[%clk 0:00:36]} 40. Qxa5 {[%clk 0:00:09]}  f4 {[%clk 0:00:34]} 41. Qc7 {[%clk 0:00:04]}  Qxc7 {[%clk 0:00:26]} 42. Nxc7 {[%clk 0:00:03]}  e3 {[%clk 0:00:26]} 43. gxf4 {[%clk 0:00:01]}  gxf4 {[%clk 0:00:26]} 44. fxe3 {[%clk 0:00:01]}  fxe3 {[%clk 0:00:26]} 0-1


[Site "https://www.chess.com"]

[Event "Titled Tuesday Blitz July 20 2021"]
[White "Arabidze, Meri"]
[Black "Jovic, Stanoje"]
[WhiteFideId "13604040"]
[BlackFideId "905020"]
[WhiteElo "2432"]
[BlackElo "2286"]
[Result "1-0"]
[Round "08"]
[TimeControl "180+1"]
[Date "2021.07.21"]
[WhiteClock "0:00:57"]
[BlackClock "0:00:18"]

1. Nf3 {[%clk 0:03:00]}  Nf6 {[%clk 0:02:59]} 2. g3 {[%clk 0:03:01]}  b5 {[%clk 0:02:57]} 3. Bg2 {[%clk 0:03:00]}  Bb7 {[%clk 0:02:56]} 4. O-O {[%clk 0:03:01]}  e6 {[%clk 0:02:57]} 5. c3 {[%clk 0:03:01]}  Be7 {[%clk 0:02:56]} 6. a4 {[%clk 0:03:01]}  a6 {[%clk 0:02:55]} 7. Qb3 {[%clk 0:02:59]}  O-O {[%clk 0:02:40]} 8. axb5 {[%clk 0:02:56]}  axb5 {[%clk 0:02:39]} 9. Rxa8 {[%clk 0:02:55]}  Bxa8 {[%clk 0:02:39]} 10. Qxb5 {[%clk 0:02:55]}  c5 {[%clk 0:02:34]} 11. d3 {[%clk 0:02:52]}  d5 {[%clk 0:02:32]} 12. Na3 {[%clk 0:02:42]}  Nc6 {[%clk 0:02:26]} 13. Bf4 {[%clk 0:02:38]}  Nh5 {[%clk 0:02:16]} 14. Be3 {[%clk 0:02:35]}  Qd6 {[%clk 0:02:12]} 15. Ra1 {[%clk 0:02:09]}  Rb8 {[%clk 0:02:09]} 16. Qa6 {[%clk 0:02:09]}  Qd8 {[%clk 0:01:42]} 17. Nb5 {[%clk 0:01:53]}  Bb7 {[%clk 0:01:35]} 18. Qa2 {[%clk 0:01:50]}  d4 {[%clk 0:01:29]} 19. cxd4 {[%clk 0:01:42]}  cxd4 {[%clk 0:01:29]} 20. Nbxd4 {[%clk 0:01:40]}  Nb4 {[%clk 0:01:15]} 21. Qa5 {[%clk 0:01:34]}  Ra8 {[%clk 0:01:06]} 22. Qxd8+ {[%clk 0:01:34]}  Rxd8 {[%clk 0:01:02]} 23. Ra7 {[%clk 0:01:31]}  Bd5 {[%clk 0:00:57]} 24. Rxe7 {[%clk 0:01:27]}  Rc8 {[%clk 0:00:49]} 25. Ne5 {[%clk 0:01:17]}  Nf6 {[%clk 0:00:40]} 26. Bxd5 {[%clk 0:01:06]}  Nfxd5 {[%clk 0:00:36]} 27. Rxf7 {[%clk 0:01:00]}  Nxe3 {[%clk 0:00:27]} 28. fxe3 {[%clk 0:01:01]}  Rc5 {[%clk 0:00:18]} 29. Rf8+ {[%clk 0:00:57]} 1-0


[Site "https://www.chess.com"]